fUST/lending_fUST_20250920
["ID","MTS","AMOUNT","RATE_DAILY","PERIOD"]
[386550825,1758381039227,-1673.35,0.00020745,2]
[386550827,1758381039236,-480.0,0.00020745,2]
[386550830,1758381039246,-1232.26,0.00020745,2]
[386550831,1758381039255,-1274.07846816,0.00020745,2]
[386550923,1758381040400,-145.51153184,0.00020745,2]
[386550924,1758381040410,-480.0,0.00020745,2]
[386550925,1758381040420,-1689.81,0.00020745,2]
[386550926,1758381040429,-556.95,0.00020745,2]
[386550927,1758381040439,-480.0,0.00020745,2]
[386550928,1758381040448,-2651.26,0.00020745,2]
[386550929,1758381040458,-545.6,0.00020745,2]
[386550930,1758381040468,-609.12,0.00020745,2]
[386550931,1758381040478,-816.7,0.00020745,2]
[386550932,1758381040487,-1417.45,0.00020746,2]
[386550933,1758381040497,-625.91598414,0.00020746,2]
[386550934,1758381040507,-480.0,0.00020746,2]
[386550935,1758381040518,-2670.61,0.00020746,2]
[386550936,1758381040528,-1393.63,0.00020746,2]
[386550937,1758381040537,-480.0,0.00020746,2]
[386550938,1758381040549,-2356.81,0.00020746,2]
[386550939,1758381040559,-3202.32613402,0.00020747,2]
[386550940,1758381040574,-1864.34386598,0.00020747,2]
[386550941,1758381040584,-480.0,0.0002078,2]
[386550942,1758381040593,-163.9784427,0.0002078,2]
[386550958,1758381043560,-252.3515573,0.0002078,2]
[386550961,1758381043570,-113.77021508,0.0002078,2]
[386550990,1758381046413,-366.22978492,0.0002078,2]
[386550991,1758381046423,-509.00429618,0.0002078,2]
[386550992,1758381046432,-480.0,0.0002078,2]
[386550993,1758381046441,-480.0,0.0002078,2]
[386550994,1758381046450,-500.44,0.0002078,2]
[386550995,1758381046459,-315.12046723,0.0002078,2]
[386550996,1758381046471,-164.87953277,0.0002078,2]
[386550997,1758381046480,-480.0,0.0002078,2]
[386550998,1758381046489,-465.67778079,0.0002078,2]
[386550999,1758381046499,-258.76584077,0.0002078,2]
[386551000,1758381046508,-480.0,0.0002078,2]
[386551001,1758381046517,-484.30010134,0.0002078,2]
[386551002,1758381046527,-484.19492212,0.0002078,2]
[386551003,1758381046536,-522.32044135,0.0002078,2]
[386551004,1758381046545,-19.16138166,0.0002078,2]
[386551005,1758381046556,-460.83861834,0.0002078,2]
[386551006,1758381046566,-480.0,0.0002078,2]
[386551007,1758381046575,-480.0,0.0002078,2]
[386551008,1758381046585,-531.71,0.0002078,2]
[386551009,1758381046594,-484.31925175,0.0002078,2]
[386551010,1758381046604,-545.08,0.0002078,2]
[386551011,1758381046613,-480.0,0.0002078,2]
[386551012,1758381046622,-480.0,0.0002078,2]
[386551013,1758381046632,-480.0,0.0002078,2]
[386551014,1758381046641,-833.35,0.0002078,2]
[386551015,1758381046650,-529.24,0.0002078,2]
[386551016,1758381046659,-480.0,0.0002078,2]
[386551017,1758381046668,-500.0,0.0002078,2]
[386551018,1758381046677,-480.0,0.0002078,2]
[386551019,1758381046686,-480.0,0.0002078,2]
[386551020,1758381046695,-480.0,0.0002078,2]
[386551021,1758381046704,-480.0,0.0002078,2]
[386551022,1758381046714,-289.67143945,0.0002078,2]
[386551023,1758381046724,-480.0,0.0002078,2]
[386551024,1758381046811,-509.31,0.0002078,2]
[386551025,1758381046844,-480.0,0.0002078,2]
[386551026,1758381046854,-480.0,0.0002078,2]
[386551027,1758381046864,-1236.44,0.0002078,2]
[386551028,1758381046873,-480.0,0.0002078,2]
[386551029,1758381046883,-480.0,0.0002078,2]
[386551030,1758381046893,-480.0,0.0002078,2]
[386551031,1758381046903,-480.0,0.0002078,2]
[386551032,1758381046913,-480.0,0.0002078,2]
[386551033,1758381046922,-480.0,0.0002078,2]
[386551034,1758381046932,-480.0,0.0002078,2]
[386551035,1758381046941,-480.0,0.0002078,2]
[386551036,1758381046950,-231.09043074,0.0002078,2]
[386551037,1758381046960,-480.0,0.0002078,2]
[386551038,1758381046969,-999.32,0.00020781,2]
[386551039,1758381046978,-480.0,0.00020781,2]
[386551040,1758381046987,-1153.18,0.00020781,2]
[386551041,1758381046998,-480.0,0.00020784,2]
[386551042,1758381047007,-480.0,0.00020784,2]
[386551043,1758381047019,-480.0,0.00020784,2]
[386551044,1758381047029,-480.0,0.00020784,2]
[386551045,1758381047041,-368.42,0.00020784,2]
[386551046,1758381047050,-696.83,0.00020784,2]
[386551047,1758381047059,-480.0,0.00020784,2]
[386551048,1758381047070,-480.0,0.00020784,2]
[386551049,1758381047079,-480.0,0.00020784,2]
[386551050,1758381047090,-480.0,0.00020784,2]
[386551051,1758381047099,-632.84,0.00020784,2]
[386551052,1758381047108,-480.0,0.00020784,2]
[386551053,1758381047118,-1118.67,0.00020784,2]
[386551054,1758381047127,-480.0,0.00020784,2]
[386551055,1758381047136,-480.0,0.00020784,2]
[386551056,1758381047145,-480.0,0.00020784,2]
[386551057,1758381047155,-2389.09098825,0.00020817,2]
[386551058,1758381047164,-902.92,0.0002082,3]
[386551059,1758381047173,-451.46,0.0002082,3]
[386551060,1758381047182,-225.73,0.0002082,3]
[386551061,1758381047192,-677.21,0.0002082,3]
[386551062,1758381047201,-1805.84,0.00020822,3]
[386551063,1758381047211,-677.86322736,0.00020824,2]
[386551064,1758381047220,-2809.08,0.00020828,3]
[386551065,1758381047229,-76198.37684826,0.0002083,2]
[386551066,1758381047238,-3059.0963075,0.00020832,2]
[386551067,1758381047248,-480.0,0.00020837,2]
[386551068,1758381047257,-513.74,0.00020837,2]
[386551069,1758381047267,-480.0,0.00020837,2]
[386551070,1758381047276,-487.62795266,0.00020838,2]
[386551071,1758381047285,-480.0,0.00020838,2]
[386551072,1758381047294,-480.0,0.00020838,2]
[386551073,1758381047303,-480.0,0.00020838,2]
[386551074,1758381047312,-1059.26,0.00020838,2]
[386551075,1758381047323,-480.0,0.00020838,2]
[386551076,1758381047332,-480.0,0.00020838,2]
[386551077,1758381047342,-616.61569811,0.00020838,2]
[386551078,1758381047352,-480.0,0.00020838,2]
[386551079,1758381047362,-480.0,0.00020838,2]
[386551080,1758381047371,-480.0,0.00020838,2]
[386551081,1758381047381,-480.0,0.00020838,2]
[386551082,1758381047391,-480.0,0.00020838,2]
[386551083,1758381047400,-480.0,0.00020838,2]
[386551084,1758381047409,-480.0,0.00020838,2]
[386551085,1758381047418,-480.0,0.00020838,2]
[386551086,1758381047427,-480.0,0.00020838,2]
[386551087,1758381047437,-480.0,0.00020838,2]
[386551088,1758381047446,-480.0,0.00020838,2]
[386551089,1758381047455,-496.04105885,0.00020839,2]
[386551090,1758381047465,-480.0,0.00020839,2]
[386551091,1758381047474,-242.25847659,0.00020839,2]
[386551092,1758381047483,-480.0,0.00020839,2]
[386551093,1758381047494,-793.93,0.00020839,2]
[386551094,1758381047503,-480.0,0.00020839,2]
[386551095,1758381047512,-938.09480459,0.00020843,2]
[386551096,1758381047521,-181.428,0.00020855,2]
[386551097,1758381047530,-1088.45,0.00020855,2]
[386551098,1758381047539,-1622.07,0.00020856,2]
[386551099,1758381047549,-1106.59,0.00020856,2]
[386551100,1758381047558,-10297.38,0.00020856,2]
[386551101,1758381047567,-532.36,0.00020856,2]
[386551102,1758381047577,-500.0,0.00020873,2]
[386551103,1758381047587,-150.0,0.00020946,2]
[386551104,1758381047597,-992.57,0.00020955,2]
[386551105,1758381047607,-359.81806978,0.00020956,2]
[386551106,1758381047617,-1971.39578248,0.00020972,2]
[386551107,1758381047626,-504.07017652,0.00020973,2]
[386551108,1758381047636,-500.0,0.00020973,2]
[386551109,1758381047645,-507.05500519,0.00020973,2]
[386551110,1758381047654,-500.0,0.00020973,2]
[386551111,1758381047664,-500.0,0.00020973,2]
[386551112,1758381047673,-500.0,0.00020973,2]
[386551113,1758381047682,-977.0,0.00020981,2]
[386551114,1758381047692,-634.0,0.00020981,2]
[386551115,1758381047703,-2158.0,0.00020981,2]
[386551116,1758381047712,-2198.0,0.00020982,2]
[386551117,1758381047722,-100000.0,0.0002099,2]
[386551118,1758381047731,-500.0,0.0002099,2]
[386551119,1758381047742,-150.0,0.00021,2]
[386551120,1758381047752,-250.0,0.00021,10]
[386551121,1758381047761,-150.0,0.00021016,2]
[386551122,1758381047771,-150.0,0.00021016,2]
[386551123,1758381047780,-480.0,0.00021018,2]
[386551124,1758381047790,-1673.35,0.00021019,2]
[386551125,1758381047799,-480.0,0.00021019,2]
[386551126,1758381047809,-1232.26,0.00021019,2]
[386551127,1758381047818,-1419.59,0.00021019,2]
[386551128,1758381047828,-480.0,0.00021019,2]
[386551129,1758381047839,-1689.81,0.00021019,2]
[386551130,1758381047850,-556.95,0.00021019,2]
[386551131,1758381047859,-480.0,0.00021019,2]
[386551132,1758381047869,-2651.26,0.00021019,2]
[386551133,1758381047878,-545.6,0.00021019,2]
[386551134,1758381047887,-609.12,0.00021019,2]
[386551135,1758381047897,-816.7,0.00021019,2]
[386551136,1758381047906,-1417.45,0.0002102,2]
[386551137,1758381047916,-480.0,0.0002102,2]
[386551138,1758381047924,-2670.61,0.0002102,2]
[386551139,1758381047933,-1393.63,0.0002102,2]
[386551140,1758381047943,-480.0,0.0002102,2]
[386551141,1758381047953,-2356.81,0.0002102,2]
[386551142,1758381047963,-5066.67,0.00021021,2]
[386551143,1758381047972,-586.99,0.0002105,2]
[386551144,1758381047982,-480.0,0.00021054,2]
[386551145,1758381047992,-480.0,0.00021054,2]
[386551146,1758381048001,-500.44,0.00021054,2]
[386551147,1758381048011,-480.0,0.00021054,2]
[386551148,1758381048023,-480.0,0.00021054,2]
[386551149,1758381048033,-480.0,0.00021054,2]
[386551150,1758381048042,-152.8482108,0.00021054,2]
[386551151,1758381048052,-484.94434806,0.00021054,2]
[386551152,1758381048061,-531.71,0.00021054,2]
[386551153,1758381048071,-545.08,0.00021054,2]
[386551154,1758381048080,-480.0,0.00021054,2]
[386551155,1758381048090,-480.0,0.00021054,2]
[386551156,1758381048100,-387.59089441,0.00021054,2]
[386551157,1758381048109,-833.35,0.00021054,2]
[386551158,1758381048118,-529.24,0.00021054,2]
[386551159,1758381048127,-480.0,0.00021054,2]
[386551160,1758381048137,-480.0,0.00021054,2]
[386551161,1758381048146,-480.0,0.00021054,2]
[386551162,1758381048155,-480.0,0.00021054,2]
[386551163,1758381048165,-509.31,0.00021054,2]
[386551164,1758381048174,-1236.44,0.00021054,2]
[386551165,1758381048183,-480.0,0.00021054,2]
[386551166,1758381048192,-288.64593048,0.00021054,2]
[386551167,1758381048202,-480.0,0.00021054,2]
[386551168,1758381048211,-480.0,0.00021054,2]
[386551169,1758381048220,-480.0,0.00021054,2]
[386551170,1758381048230,-170.6,0.00021054,2]
[386551171,1758381048239,-480.0,0.00021054,2]
[386551172,1758381048249,-480.0,0.00021054,2]
[386551173,1758381048259,-999.32,0.00021055,2]
[386551174,1758381048269,-480.0,0.00021055,2]
[386551175,1758381048279,-1153.18,0.00021055,2]
[386551176,1758381048288,-480.0,0.00021058,2]
[386551177,1758381048298,-163.85,0.00021058,2]
[386551178,1758381048308,-480.0,0.00021058,2]
[386551179,1758381048317,-480.0,0.00021058,2]
[386551180,1758381048326,-696.83,0.00021058,2]
[386551181,1758381048335,-480.0,0.00021058,2]
[386551182,1758381048345,-480.0,0.00021058,2]
[386551183,1758381048354,-159.41,0.00021058,2]
[386551184,1758381048363,-632.84,0.00021058,2]
[386551185,1758381048373,-480.0,0.00021058,2]
[386551186,1758381048382,-1118.67,0.00021058,2]
[386551187,1758381048392,-291.49468234,0.00021058,2]
[386551188,1758381048401,-480.0,0.00021058,2]
[386551189,1758381048410,-938.09480459,0.00021095,2]
[386551190,1758381048419,-250.0,0.000211,10]
[386551191,1758381048428,-2781.72916904,0.000211,2]
[386551192,1758381048437,-600.0,0.0002111,2]
[386551193,1758381048446,-480.0,0.00021111,2]
[386551194,1758381048456,-513.74,0.00021111,2]
[386551195,1758381048465,-480.0,0.00021111,2]
[386551196,1758381048475,-480.0,0.00021112,2]
[386551197,1758381048484,-1059.26,0.00021112,2]
[386551198,1758381048495,-480.0,0.00021112,2]
[386551199,1758381048504,-171.37992175,0.00021112,2]
[386551200,1758381048514,-480.0,0.00021112,2]
[386551201,1758381048523,-480.0,0.00021112,2]
[386551202,1758381048532,-480.0,0.00021112,2]
[386551203,1758381048541,-480.0,0.00021112,2]
[386551204,1758381048550,-480.0,0.00021112,2]
[386551205,1758381048559,-480.0,0.00021112,2]
[386551206,1758381048569,-480.0,0.00021113,2]
[386551207,1758381048578,-480.0,0.00021113,2]
[386551208,1758381048588,-793.93,0.00021113,2]
[386551209,1758381048597,-480.0,0.00021113,2]
[386551210,1758381048607,-1622.07,0.0002113,2]
[386551211,1758381048616,-1106.59,0.0002113,2]
[386551212,1758381048625,-10297.38,0.0002113,2]
[386551213,1758381048635,-532.36,0.0002113,2]
[386551214,1758381048644,-307.66481062,0.00021132,2]
[386551215,1758381048653,-250.0,0.000212,10]
[386551216,1758381048663,-992.57,0.00021229,2]
[386551217,1758381048672,-500.0,0.00021264,2]
[386551218,1758381048681,-480.0,0.00021292,2]
[386551219,1758381048692,-1673.35,0.00021293,2]
[386551220,1758381048701,-480.0,0.00021293,2]
[386551221,1758381048711,-1232.26,0.00021293,2]
[386551222,1758381048720,-1419.59,0.00021293,2]
[386551223,1758381048730,-480.0,0.00021293,2]
[386551224,1758381048740,-1689.81,0.00021293,2]
[386551225,1758381048750,-556.95,0.00021293,2]
[386551226,1758381048760,-480.0,0.00021293,2]
[386551227,1758381048771,-2651.26,0.00021293,2]
[386551228,1758381048780,-545.6,0.00021293,2]
[386551229,1758381048790,-609.12,0.00021293,2]
[386551230,1758381048799,-816.7,0.00021293,2]
[386551231,1758381048808,-1417.45,0.00021294,2]
[386551232,1758381048818,-480.0,0.00021294,2]
[386551233,1758381048828,-2670.61,0.00021294,2]
[386551234,1758381048838,-1393.63,0.00021294,2]
[386551235,1758381048847,-480.0,0.00021294,2]
[386551236,1758381048857,-2356.81,0.00021294,2]
[386551237,1758381048867,-5066.67,0.00021295,2]
[386551238,1758381048876,-250.0,0.000213,10]
[386551239,1758381048886,-480.0,0.00021328,2]
[386551240,1758381048971,-480.0,0.00021328,2]
[386551241,1758381048995,-500.44,0.00021328,2]
[386551242,1758381049005,-480.0,0.00021328,2]
[386551243,1758381049015,-480.0,0.00021328,2]
[386551244,1758381049030,-480.0,0.00021328,2]
[386551245,1758381049040,-531.71,0.00021328,2]
[386551246,1758381049050,-545.08,0.00021328,2]
[386551247,1758381049060,-220.17840642,0.00021328,2]
[386551248,1758381049069,-480.0,0.00021328,2]
[386551249,1758381049079,-833.35,0.00021328,2]
[386551250,1758381049088,-529.24,0.00021328,2]
[386551251,1758381049098,-480.0,0.00021328,2]
[386551252,1758381049107,-480.0,0.00021328,2]
[386551253,1758381049117,-480.0,0.00021328,2]
[386551254,1758381049127,-480.0,0.00021328,2]
[386551255,1758381049136,-509.31,0.00021328,2]
[386551256,1758381049146,-1236.44,0.00021328,2]
[386551257,1758381049156,-480.0,0.00021328,2]
[386551258,1758381049165,-480.0,0.00021328,2]
[386551259,1758381049174,-480.0,0.00021328,2]
[386551260,1758381049184,-480.0,0.00021328,2]
[386551261,1758381049194,-480.0,0.00021328,2]
[386551262,1758381049204,-480.0,0.00021328,2]
[386551263,1758381049213,-999.32,0.00021329,2]
[386551264,1758381049223,-480.0,0.00021329,2]
[386551265,1758381049232,-1153.18,0.00021329,2]
[386551266,1758381049242,-907.23517972,0.0002133,2]
[386551267,1758381049251,-480.0,0.00021332,2]
[386551268,1758381049261,-480.0,0.00021332,2]
[386551269,1758381049271,-480.0,0.00021332,2]
[386551270,1758381049280,-696.83,0.00021332,2]
[386551271,1758381049290,-480.0,0.00021332,2]
[386551272,1758381049299,-480.0,0.00021332,2]
[386551273,1758381049309,-632.84,0.00021332,2]
[386551274,1758381049320,-1118.67,0.00021332,2]
[386551275,1758381049329,-480.0,0.00021332,2]
[386551276,1758381049339,-938.09480459,0.00021348,2]
[386551277,1758381049349,-480.0,0.00021385,2]
[386551278,1758381049359,-513.74,0.00021385,2]
[386551279,1758381049368,-480.0,0.00021385,2]
[386551280,1758381049378,-1059.26,0.00021386,2]
[386551281,1758381049387,-480.0,0.00021386,2]
[386551282,1758381049396,-186.6,0.00021386,2]
[386551283,1758381049406,-480.0,0.00021386,2]
[386551284,1758381049415,-480.0,0.00021386,2]
[386551285,1758381049424,-480.0,0.00021386,2]
[386551286,1758381049434,-153.16402,0.00021386,2]
[386551287,1758381049443,-151.0,0.00021386,2]
[386551288,1758381049453,-480.0,0.00021386,2]
[386551289,1758381049462,-176.775422,0.00021386,2]
[386551290,1758381049472,-176.775422,0.00021386,2]
[386551291,1758381049481,-176.775422,0.00021386,2]
[386551292,1758381049491,-176.775422,0.00021386,2]
[386551293,1758381049500,-176.025023,0.00021386,2]
[386551294,1758381049513,-162.031754,0.00021386,2]
[386551295,1758381049523,-176.025023,0.00021386,2]
[386551296,1758381049532,-162.031754,0.00021386,2]
[386551297,1758381049542,-162.031754,0.00021386,2]
[386551298,1758381049551,-162.031754,0.00021386,2]
[386551299,1758381049560,-176.025023,0.00021386,2]
[386551300,1758381049570,-176.025023,0.00021386,2]
[386551301,1758381049580,-480.0,0.00021387,2]
[386551302,1758381049590,-164.09594588,0.00021387,2]
[386551303,1758381049599,-289.170854,0.00021387,2]
[386551304,1758381049608,-289.170854,0.00021387,2]
[386551305,1758381049618,-289.170854,0.00021387,2]
[386551306,1758381049627,-289.170854,0.00021387,2]
[386551307,1758381049638,-326.354639,0.00021387,2]
[386551308,1758381049648,-326.354639,0.00021387,2]
[386551309,1758381049657,-326.354639,0.00021387,2]
[386551310,1758381049667,-151.0,0.00021387,2]
[386551311,1758381049676,-326.354639,0.00021387,2]
[386551312,1758381049686,-151.0,0.00021387,2]
[386551313,1758381049695,-154.585927,0.00021387,2]
[386551314,1758381049704,-793.93,0.00021387,2]
[386551315,1758381049714,-222.166572,0.00021387,2]
[386551316,1758381049724,-229.641909,0.00021387,2]
[386551317,1758381049733,-480.0,0.00021387,2]
[386551318,1758381049743,-151.0,0.00021387,2]
[386551319,1758381049752,-151.0,0.00021387,2]
[386551320,1758381049762,-151.0,0.00021387,2]
[386551321,1758381049772,-151.0,0.00021387,2]
[386551322,1758381049782,-151.0,0.00021387,2]
[386551323,1758381049791,-235.889635,0.00021387,2]
[386551324,1758381049801,-250.0,0.000214,10]
[386551325,1758381049811,-417.15472785,0.000214,10]
[386551326,1758381049822,-151.0,0.00021404,2]
[386551327,1758381049831,-151.55455188,0.00021404,2]
[386551328,1758381049841,-151.45100741,0.00021404,2]
[386551329,1758381049850,-1622.07,0.00021404,2]
[386551330,1758381049860,-1106.59,0.00021404,2]
[386551331,1758381049870,-10297.38,0.00021404,2]
[386551332,1758381049879,-532.36,0.00021404,2]
[386551333,1758381049889,-168.0,0.00021408,2]
[386551334,1758381049898,-1000.0,0.00021421,2]
[386551335,1758381049907,-15299.88400008,0.00021473,3]
[386551336,1758381049917,-179.73040439,0.00021488,2]
[386551337,1758381049927,-151.0,0.00021494,2]
[386551338,1758381049936,-500.0,0.00021494,2]
[386551339,1758381049946,-354.301418,0.000215,10]
[386551340,1758381049955,-992.57,0.00021503,2]
[386551341,1758381049965,-1531.986785,0.0002152,5]
[386551342,1758381049975,-1000.0,0.00021521,2]
[386551343,1758381049984,-1000.0,0.00021521,2]
[386551344,1758381049993,-1000.0,0.00021521,2]
[386551345,1758381050003,-1000.0,0.00021521,2]
[386551346,1758381050013,-500.0,0.00021538,2]
[386551347,1758381050022,-1000.0,0.0002154,5]
[386551348,1758381050035,-1000.0,0.0002156,5]
[386551349,1758381050045,-480.0,0.00021566,2]
[386551350,1758381050056,-1673.35,0.00021567,2]
[386551351,1758381050065,-480.0,0.00021567,2]
[386551352,1758381050074,-1232.26,0.00021567,2]
[386551353,1758381050083,-1419.59,0.00021567,2]
[386551354,1758381050094,-480.0,0.00021567,2]
[386551355,1758381050103,-1689.81,0.00021567,2]
[386551356,1758381050113,-556.95,0.00021567,2]
[386551357,1758381050123,-480.0,0.00021567,2]
[386551358,1758381050132,-2651.26,0.00021567,2]
[386551359,1758381050142,-545.6,0.00021567,2]
[386551360,1758381050151,-609.12,0.00021567,2]
[386551361,1758381050161,-816.7,0.00021567,2]
[386551362,1758381050171,-1417.45,0.00021568,2]
[386551363,1758381050180,-480.0,0.00021568,2]
[386551364,1758381050190,-2670.61,0.00021568,2]
[386551365,1758381050199,-1393.63,0.00021568,2]
[386551366,1758381050209,-480.0,0.00021568,2]
[386551367,1758381050219,-2356.81,0.00021568,2]
[386551368,1758381050228,-5066.67,0.00021569,2]
[386551369,1758381050238,-500.0,0.00021573,2]
[386551370,1758381050248,-500.0,0.00021573,2]
[386551371,1758381050257,-505.68458982,0.00021573,2]
[386551372,1758381050267,-500.0,0.00021573,2]
[386551373,1758381050276,-501.74999125,0.00021573,2]
[386551374,1758381050285,-258.94700677,0.00021573,2]
[386551375,1758381050295,-501.0381757,0.00021573,2]
[386551376,1758381050304,-500.0,0.00021573,2]
[386551377,1758381050313,-16735.45429122,0.00021573,2]
[386551378,1758381050330,-17816.87856229,0.00021573,2]
[386551379,1758381055053,500.0,0.000201,2]
[386551380,1758381066697,500.0,0.000201,2]
[386551381,1758381078266,500.0,0.000201,2]
[386551382,1758381089751,500.0,0.000201,2]
[386551383,1758381094657,180.72,0.00019213,2]
[386551384,1758381095202,361.44,0.00020128,2]
[386551385,1758381114502,500.0,0.000201,2]
[386551386,1758381124488,1839.96939702,0.000199,2]
[386551387,1758381136772,648.9039923,0.00019928,2]
[386551428,1758381189066,59.73777205,0.00019224,2]
[386551429,1758381189158,114.08222795,0.00019224,2]
[386551430,1758381189509,347.64,0.0002014,2]
[386551431,1758381275590,167.18,0.00019212,2]
[386551432,1758381276239,334.37,0.00020127,2]
[386551433,1758381318156,1846.63309041,0.000199,2]
[386551434,1758381348601,786.3637439,0.00019743,2]
[386551435,1758381362456,167.87,0.00019222,2]
[386551436,1758381362835,335.73,0.00020137,2]
[386551437,1758381439403,-4425.23,0.00020735,10]
[386551438,1758381449169,-1149.55,0.00020735,10]
[386551439,1758381449273,-300.0,0.00020739,2]
[386551440,1758381449370,-1200.0,0.00020739,2]
[386551441,1758381449468,-500.0,0.0002074,2]
[386551442,1758381449566,-366.74820131,0.0002074,2]
[386551443,1758381449664,-500.0,0.0002074,2]
[386551444,1758381449761,-180.0,0.0002074,2]
[386551445,1758381449859,-500.0,0.0002074,2]
[386551446,1758381449963,-107.41359738,0.0002074,2]
[386551447,1758381451165,161.46,0.00019221,2]
[386551448,1758381451286,322.91,0.00020136,2]
[386551449,1758381500482,1808.58395264,0.000199,2]
[386551450,1758381545701,155.83,0.00019217,2]
[386551451,1758381546155,311.66,0.00020132,2]
[386551453,1758381553161,216.003016,0.00019743,2]
[386551454,1758381564856,201.59067103,0.0002,2]
[386551455,1758381635368,150.0,0.00019215,2]
[386551456,1758381636003,299.76,0.0002013,2]
[386551457,1758381683380,1803.37458621,0.000199,2]
[386551458,1758381721589,154.14,0.00019219,2]
[386551459,1758381722429,308.28,0.00020134,2]
[386551460,1758381729762,4590.78777412,0.00019736,2]
[386551461,1758381729853,10000.01,0.00019736,2]
[386551462,1758381729948,10000.01,0.00019736,2]
[386551463,1758381730039,10000.01,0.00019736,2]
[386551464,1758381730130,5409.22222588,0.00019736,2]
[386551465,1758381821208,153.1,0.00019205,2]
[386551466,1758381821666,306.21,0.0002012,2]
[386551467,1758381827066,4131.47777412,0.00019734,2]
[386551468,1758381827160,5868.52222588,0.00019734,2]
[386551469,1758381833923,215.91014396,0.00020538,2]
[386551470,1758381865926,1765.98388835,0.000199,2]
[386551471,1758381878176,488.3041891,0.00020415,4]
[386551472,1758381885188,168.0,0.00020364,2]
[386551473,1758381895074,168.0,0.00020246,2]
[386551474,1758381895953,500.0,0.000205,2]
[386551475,1758381902406,825.28955271,0.00020372,2]
[386551476,1758381902491,4174.71044729,0.00020372,2]
[386551477,1758381902597,5000.0,0.00019372,2]
[386551478,1758381902724,825.29955271,0.00019178,2]
[386551479,1758381902814,4174.70044729,0.00019178,2]
[386551482,1758381910705,235.13,0.00019239,2]
[386551483,1758381911163,470.26,0.00020155,2]
[386551488,1758381946953,160.0,0.0002,3]
[386551489,1758381997480,226.15,0.00019213,2]
[386551490,1758381998538,452.31,0.00020128,2]
[386551491,1758382041128,-170.56670221,0.00020632,2]
[386551492,1758382041153,-564.62259721,0.00020637,2]
[386551493,1758382041175,-641.7643247,0.0002064,2]
[386551494,1758382049475,1789.43356075,0.000199,2]
[386551501,1758382084209,217.52,0.00019217,2]
[386551502,1758382084913,435.04,0.00020132,2]
[386551508,1758382113667,32655.88563107,0.00029361,60]
[386551509,1758382113771,10000.01,0.00017,2]
[386551510,1758382113868,10000.01,0.00017,2]
[386551511,1758382113961,5381.13718864,0.00017,2]
[386551512,1758382115757,251.33757466,0.0002,7]
[386551513,1758382116290,4367.5352367,0.00015,2]
[386551514,1758382116373,10000.01,0.00015,2]
[386551515,1758382116452,10000.01,0.00015,2]
[386551516,1758382116534,10000.01,0.00015,2]
[386551517,1758382116619,6691.65032947,0.00015,2]
[386551519,1758382119034,3308.35967053,0.00018,2]
[386551520,1758382119119,6433.80560736,0.00018,2]
[386551523,1758382122941,160.0,0.00020581,2]
[386551524,1758382124844,1265.3952563,0.0001973,2]